[Event "Titled Tuesday Blitz July 05 Late 2022"]
[White "Deac, Bogdan-Daniel"]
[Black "Meshkovs, Nikita"]
[WhiteFideId "1226380"]
[BlackFideId "11602740"]
[WhiteElo "2648"]
[BlackElo "2506"]
[Result "1-0"]
[Round "07"]
[TimeControl "180+1"]
[Date "2022.07.05"]
[WhiteClock "0:00:13"]
[BlackClock "0:00:46"]

1. d4 {[%clk 0:03:00]}  Nf6 {[%clk 0:02:59]} 2. c4 {[%clk 0:03:01]}  e6 {[%clk 0:03:00]} 3. Nf3 {[%clk 0:03:01]}  d5 {[%clk 0:03:00]} 4. Nc3 {[%clk 0:03:01]}  a6 {[%clk 0:02:56]} 5. e3 {[%clk 0:02:58]}  Be7 {[%clk 0:02:53]} 6. b3 {[%clk 0:02:58]}  O-O {[%clk 0:02:53]} 7. Bb2 {[%clk 0:02:58]}  c5 {[%clk 0:02:49]} 8. cxd5 {[%clk 0:02:54]}  cxd4 {[%clk 0:02:48]} 9. Qxd4 {[%clk 0:02:50]}  exd5 {[%clk 0:02:48]} 10. Be2 {[%clk 0:02:47]}  Nc6 {[%clk 0:02:49]} 11. Qd1 {[%clk 0:02:44]}  Bg4 {[%clk 0:02:37]} 12. O-O {[%clk 0:02:42]}  Rc8 {[%clk 0:02:30]} 13. h3 {[%clk 0:02:39]}  Bf5 {[%clk 0:02:26]} 14. Rc1 {[%clk 0:02:35]}  Qd6 {[%clk 0:02:25]} 15. Nd4 {[%clk 0:02:25]}  Bd7 {[%clk 0:02:23]} 16. Bf3 {[%clk 0:02:15]}  Rfd8 {[%clk 0:02:22]} 17. Nce2 {[%clk 0:02:08]}  Ne5 {[%clk 0:02:22]} 18. Rxc8 {[%clk 0:01:57]}  Rxc8 {[%clk 0:02:21]} 19. Nf4 {[%clk 0:01:57]}  Nxf3+ {[%clk 0:02:21]} 20. Nxf3 {[%clk 0:01:55]}  Be6 {[%clk 0:02:15]} 21. Qe2 {[%clk 0:01:40]}  Ne4 {[%clk 0:02:09]} 22. Rd1 {[%clk 0:01:40]}  Nc3 {[%clk 0:02:07]} 23. Bxc3 {[%clk 0:01:39]}  Rxc3 {[%clk 0:02:08]} 24. Qd2 {[%clk 0:01:33]}  Rc8 {[%clk 0:01:40]} 25. Nxd5 {[%clk 0:01:28]}  Bxd5 {[%clk 0:01:37]} 26. Qxd5 {[%clk 0:01:29]}  Qxd5 {[%clk 0:01:28]} 27. Rxd5 {[%clk 0:01:30]}  f6 {[%clk 0:01:03]} 28. Rd7 {[%clk 0:01:08]}  Rc1+ {[%clk 0:01:02]} 29. Kh2 {[%clk 0:01:08]}  Ba3 {[%clk 0:01:02]} 30. Nd4 {[%clk 0:00:41]}  Ra1 {[%clk 0:00:58]} 31. Ne6 {[%clk 0:00:23]}  g6 {[%clk 0:00:57]} 32. Rg7+ {[%clk 0:00:21]}  Kh8 {[%clk 0:00:58]} 33. Rxb7 {[%clk 0:00:21]}  Kg8 {[%clk 0:00:58]} 34. Rg7+ {[%clk 0:00:19]}  Kh8 {[%clk 0:00:58]} 35. Ra7 {[%clk 0:00:20]}  Kg8 {[%clk 0:00:55]} 36. Rxa6 {[%clk 0:00:18]}  Rxa2 {[%clk 0:00:56]} 37. f4 {[%clk 0:00:17]}  Ra1 {[%clk 0:00:54]} 38. Nd4 {[%clk 0:00:17]}  Bb2 {[%clk 0:00:52]} 39. Rxa1 {[%clk 0:00:15]}  Bxa1 {[%clk 0:00:53]} 40. g4 {[%clk 0:00:14]}  Bc3 {[%clk 0:00:51]} 41. Kg3 {[%clk 0:00:15]}  Kf7 {[%clk 0:00:51]} 42. Kf3 {[%clk 0:00:15]}  Ke7 {[%clk 0:00:51]} 43. Ke4 {[%clk 0:00:15]}  Be1 {[%clk 0:00:51]} 44. Kd5 {[%clk 0:00:14]}  Kd7 {[%clk 0:00:51]} 45. e4 {[%clk 0:00:13]}  Bd2 {[%clk 0:00:49]} 46. Ne2 {[%clk 0:00:12]}  h5 {[%clk 0:00:44]} 47. e5 {[%clk 0:00:10]}  fxe5 {[%clk 0:00:44]} 48. fxe5 {[%clk 0:00:10]}  hxg4 {[%clk 0:00:44]} 49. hxg4 {[%clk 0:00:11]}  Ke7 {[%clk 0:00:43]} 50. Nd4 {[%clk 0:00:11]}  Kd7 {[%clk 0:00:43]} 51. Nc6 {[%clk 0:00:11]}  Kc7 {[%clk 0:00:42]} 52. e6 {[%clk 0:00:11]}  Bg5 {[%clk 0:00:43]} 53. b4 {[%clk 0:00:11]}  Kb6 {[%clk 0:00:43]} 54. e7 {[%clk 0:00:11]}  Bxe7 {[%clk 0:00:43]} 55. Nxe7 {[%clk 0:00:12]}  Kb5 {[%clk 0:00:44]} 56. Nxg6 {[%clk 0:00:12]}  Kxb4 {[%clk 0:00:45]} 57. g5 {[%clk 0:00:13]}  Kb5 {[%clk 0:00:46]} 58. Ne5 {[%clk 0:00:13]} 1-0


[Site "https://www.chess.com"]

[Event "Titled Tuesday Blitz July 05 Late 2022"]
[White "Domingo Nunez, Ruben"]
[Black "Storme, Isak"]
[WhiteFideId "22245570"]
[BlackFideId "1728113"]
[WhiteElo "2373"]
[BlackElo "2205"]
[Result "0-1"]
[Round "07"]
[TimeControl "180+1"]
[Date "2022.07.05"]
[WhiteClock "0:00:08"]
[BlackClock "0:00:08"]

1. c4 {[%clk 0:02:57]}  c5 {[%clk 0:02:56]} 2. Nc3 {[%clk 0:02:58]}  Nf6 {[%clk 0:02:54]} 3. g3 {[%clk 0:02:58]}  g6 {[%clk 0:02:50]} 4. Bg2 {[%clk 0:02:58]}  Bg7 {[%clk 0:02:50]} 5. Nf3 {[%clk 0:02:59]}  O-O {[%clk 0:02:50]} 6. O-O {[%clk 0:02:59]}  Nc6 {[%clk 0:02:51]} 7. d4 {[%clk 0:02:59]}  cxd4 {[%clk 0:02:52]} 8. Nxd4 {[%clk 0:02:59]}  Qa5 {[%clk 0:02:52]} 9. Nc2 {[%clk 0:02:46]}  d6 {[%clk 0:02:45]} 10. Bd2 {[%clk 0:02:42]}  Qh5 {[%clk 0:02:45]} 11. Ne3 {[%clk 0:02:40]}  Bh3 {[%clk 0:02:42]} 12. Bf3 {[%clk 0:02:35]}  Ng4 {[%clk 0:02:18]} 13. Ncd5 {[%clk 0:02:35]}  Nce5 {[%clk 0:02:12]} 14. Nf4 {[%clk 0:02:35]}  Qh6 {[%clk 0:01:48]} 15. Nxg4 {[%clk 0:01:36]}  Bxg4 {[%clk 0:01:47]} 16. Ne6 {[%clk 0:01:10]}  Qh5 {[%clk 0:01:08]} 17. Nxg7 {[%clk 0:01:10]}  Kxg7 {[%clk 0:01:05]} 18. Bc3 {[%clk 0:01:10]}  Bxf3 {[%clk 0:01:03]} 19. exf3 {[%clk 0:01:09]}  Kg8 {[%clk 0:01:03]} 20. Bxe5 {[%clk 0:01:05]}  Qxe5 {[%clk 0:01:03]} 21. Re1 {[%clk 0:01:04]}  Qf6 {[%clk 0:01:03]} 22. b3 {[%clk 0:00:54]}  Rac8 {[%clk 0:00:58]} 23. Qd5 {[%clk 0:00:54]}  b6 {[%clk 0:00:57]} 24. Rad1 {[%clk 0:00:52]}  Rc7 {[%clk 0:00:54]} 25. Rd3 {[%clk 0:00:51]}  Rfc8 {[%clk 0:00:49]} 26. Rde3 {[%clk 0:00:51]}  Kg7 {[%clk 0:00:49]} 27. Kg2 {[%clk 0:00:50]}  h5 {[%clk 0:00:47]} 28. h4 {[%clk 0:00:50]}  Rc5 {[%clk 0:00:46]} 29. Qd2 {[%clk 0:00:44]}  R8c7 {[%clk 0:00:46]} 30. Re4 {[%clk 0:00:44]}  Rf5 {[%clk 0:00:45]} 31. Qe3 {[%clk 0:00:41]}  e6 {[%clk 0:00:41]} 32. Rd1 {[%clk 0:00:37]}  d5 {[%clk 0:00:37]} 33. cxd5 {[%clk 0:00:36]}  exd5 {[%clk 0:00:34]} 34. Red4 {[%clk 0:00:34]}  Qd6 {[%clk 0:00:17]} 35. Qd3 {[%clk 0:00:30]}  Rd7 {[%clk 0:00:15]} 36. Qb5 {[%clk 0:00:29]}  Qe6 {[%clk 0:00:15]} 37. R1d2 {[%clk 0:00:23]}  Re5 {[%clk 0:00:15]} 38. a4 {[%clk 0:00:21]}  Qd6 {[%clk 0:00:12]} 39. f4 {[%clk 0:00:18]}  Rf5 {[%clk 0:00:10]} 40. Re2 {[%clk 0:00:17]}  Rc7 {[%clk 0:00:07]} 41. Qd3 {[%clk 0:00:17]}  Qf6 {[%clk 0:00:07]} 42. Kh2 {[%clk 0:00:15]}  Rc5 {[%clk 0:00:06]} 43. b4 {[%clk 0:00:15]}  Rc1 {[%clk 0:00:06]} 44. Rxd5 {[%clk 0:00:14]}  Qc6 {[%clk 0:00:05]} 45. Qd4+ {[%clk 0:00:10]}  Kh7 {[%clk 0:00:05]} 46. Rd2 {[%clk 0:00:10]}  Rc4 {[%clk 0:00:03]} 47. Qd3 {[%clk 0:00:10]}  Rxd5 {[%clk 0:00:03]} 48. Qxd5 {[%clk 0:00:10]}  Qxd5 {[%clk 0:00:03]} 49. Rxd5 {[%clk 0:00:11]}  Rxb4 {[%clk 0:00:04]} 50. a5 {[%clk 0:00:11]}  bxa5 {[%clk 0:00:04]} 51. Rxa5 {[%clk 0:00:12]}  Rb7 {[%clk 0:00:03]} 52. Ra6 {[%clk 0:00:12]}  Kg7 {[%clk 0:00:04]} 53. Kg2 {[%clk 0:00:13]}  Re7 {[%clk 0:00:04]} 54. Kf3 {[%clk 0:00:13]}  Rb7 {[%clk 0:00:05]} 55. f5 {[%clk 0:00:13]}  gxf5 {[%clk 0:00:04]} 56. Kf4 {[%clk 0:00:13]}  Rb2 {[%clk 0:00:03]} 57. f3 {[%clk 0:00:13]}  Rb3 {[%clk 0:00:02]} 58. Rxa7 {[%clk 0:00:13]}  Kg6 {[%clk 0:00:03]} 59. Ra6+ {[%clk 0:00:13]}  f6 {[%clk 0:00:04]} 60. Ra4 {[%clk 0:00:13]}  Rc3 {[%clk 0:00:04]} 61. Rb4 {[%clk 0:00:14]}  Ra3 {[%clk 0:00:04]} 62. Rc4 {[%clk 0:00:14]}  Rb3 {[%clk 0:00:04]} 63. Rd4 {[%clk 0:00:15]}  Ra3 {[%clk 0:00:04]} 64. Rb4 {[%clk 0:00:15]}  Rc3 {[%clk 0:00:05]} 65. Rb8 {[%clk 0:00:14]}  Rc4+ {[%clk 0:00:05]} 66. Ke3 {[%clk 0:00:14]}  Rc3+ {[%clk 0:00:06]} 67. Kf2 {[%clk 0:00:14]}  Rc2+ {[%clk 0:00:06]} 68. Kf1 {[%clk 0:00:14]}  f4 {[%clk 0:00:07]} 69. gxf4 {[%clk 0:00:13]}  Kf5 {[%clk 0:00:07]} 70. Rb4 {[%clk 0:00:13]}  Ra2 {[%clk 0:00:07]} 71. Kg1 {[%clk 0:00:13]}  Rc2 {[%clk 0:00:07]} 72. Kh1 {[%clk 0:00:14]}  Ra2 {[%clk 0:00:07]} 73. Kg1 {[%clk 0:00:14]}  Rc2 {[%clk 0:00:08]} 74. Rc4 {[%clk 0:00:15]}  Rxc4 {[%clk 0:00:07]} 75. Kf2 {[%clk 0:00:09]}  Rxf4 {[%clk 0:00:08]} 76. Kg3 {[%clk 0:00:09]}  Ra4 {[%clk 0:00:09]} 77. Kg2 {[%clk 0:00:08]}  Rxh4 {[%clk 0:00:08]} 0-1


[Site "https://www.chess.com"]

[Event "Titled Tuesday Blitz July 05 Late 2022"]
[White "Dubov, Daniil"]
[Black "Abdrlauf, Elham"]
[WhiteFideId "24126055"]
[BlackFideId "1533533"]
[WhiteElo "2791"]
[BlackElo "2429"]
[Result "1-0"]
[Round "07"]
[TimeControl "180+1"]
[Date "2022.07.05"]
[WhiteClock "0:00:09"]
[BlackClock "0:00:02"]

1. c4 {[%clk 0:03:00]}  e5 {[%clk 0:02:59]} 2. g3 {[%clk 0:02:59]}  Nf6 {[%clk 0:03:00]} 3. Bg2 {[%clk 0:02:58]}  c6 {[%clk 0:03:00]} 4. d4 {[%clk 0:02:54]}  e4 {[%clk 0:03:00]} 5. Qa4 {[%clk 0:02:53]}  d5 {[%clk 0:02:58]} 6. cxd5 {[%clk 0:02:52]}  b5 {[%clk 0:02:59]} 7. Qd1 {[%clk 0:02:48]}  cxd5 {[%clk 0:02:59]} 8. Bg5 {[%clk 0:02:47]}  Be7 {[%clk 0:02:58]} 9. e3 {[%clk 0:02:45]}  Nbd7 {[%clk 0:02:56]} 10. Ne2 {[%clk 0:02:43]}  O-O {[%clk 0:02:54]} 11. O-O {[%clk 0:02:43]}  h6 {[%clk 0:02:54]} 12. Bxf6 {[%clk 0:02:41]}  Nxf6 {[%clk 0:02:55]} 13. a3 {[%clk 0:02:39]}  a5 {[%clk 0:02:51]} 14. Nbc3 {[%clk 0:02:38]}  Ba6 {[%clk 0:02:46]} 15. Qd2 {[%clk 0:02:31]}  Qd7 {[%clk 0:02:40]} 16. Rfc1 {[%clk 0:02:26]}  b4 {[%clk 0:02:38]} 17. axb4 {[%clk 0:02:07]}  axb4 {[%clk 0:02:39]} 18. Na4 {[%clk 0:02:07]}  Bxe2 {[%clk 0:01:28]} 19. Nb6 {[%clk 0:02:06]}  Rxa1 {[%clk 0:01:28]} 20. Nxd7 {[%clk 0:02:06]}  Rxc1+ {[%clk 0:01:29]} 21. Qxc1 {[%clk 0:02:06]}  Nxd7 {[%clk 0:01:29]} 22. Qc7 {[%clk 0:02:06]}  Bb5 {[%clk 0:01:11]} 23. Bf1 {[%clk 0:01:24]}  Bd8 {[%clk 0:00:55]} 24. Qd6 {[%clk 0:01:24]}  Bxf1 {[%clk 0:00:55]} 25. Kxf1 {[%clk 0:01:24]}  Nf6 {[%clk 0:00:53]} 26. Qxb4 {[%clk 0:01:24]}  Bc7 {[%clk 0:00:29]} 27. Qc5 {[%clk 0:01:24]}  Bb8 {[%clk 0:00:20]} 28. Qc6 {[%clk 0:01:23]}  Rd8 {[%clk 0:00:13]} 29. b4 {[%clk 0:01:22]}  Kf8 {[%clk 0:00:11]} 30. Kg2 {[%clk 0:01:20]}  Bd6 {[%clk 0:00:10]} 31. b5 {[%clk 0:01:18]}  Ke7 {[%clk 0:00:11]} 32. h3 {[%clk 0:01:16]}  h5 {[%clk 0:00:11]} 33. b6 {[%clk 0:01:12]}  Rb8 {[%clk 0:00:05]} 34. b7 {[%clk 0:01:09]}  Rd8 {[%clk 0:00:05]} 35. Kf1 {[%clk 0:01:07]}  Rb8 {[%clk 0:00:04]} 36. Qc8 {[%clk 0:01:03]}  Nd7 {[%clk 0:00:02]} 37. Kg2 {[%clk 0:01:02]}  g6 {[%clk 0:00:03]} 38. g4 {[%clk 0:01:01]}  hxg4 {[%clk 0:00:03]} 39. hxg4 {[%clk 0:01:02]}  Nb6 {[%clk 0:00:02]} 40. Qc6 {[%clk 0:01:00]}  Nd7 {[%clk 0:00:02]} 41. Qxd5 {[%clk 0:00:59]}  Nf6 {[%clk 0:00:02]} 42. Qc6 {[%clk 0:00:58]}  g5 {[%clk 0:00:02]} 43. Qc8 {[%clk 0:00:56]}  Nd7 {[%clk 0:00:02]} 44. Kf1 {[%clk 0:00:55]}  Nf6 {[%clk 0:00:02]} 45. Ke2 {[%clk 0:00:55]}  Nd5 {[%clk 0:00:03]} 46. Qc6 {[%clk 0:00:49]}  Nf6 {[%clk 0:00:03]} 47. f3 {[%clk 0:00:47]}  exf3+ {[%clk 0:00:03]} 48. Kxf3 {[%clk 0:00:48]}  Rh8 {[%clk 0:00:02]} 49. e4 {[%clk 0:00:35]}  Nd7 {[%clk 0:00:03]} 50. Qd5 {[%clk 0:00:29]}  Bf4 {[%clk 0:00:01]} 51. e5 {[%clk 0:00:27]}  Rb8 {[%clk 0:00:01]} 52. Ke4 {[%clk 0:00:23]}  Kd8 {[%clk 0:00:01]} 53. Kf5 {[%clk 0:00:17]}  Kc7 {[%clk 0:00:02]} 54. Qd6+ {[%clk 0:00:16]}  Kd8 {[%clk 0:00:01]} 55. Qc6 {[%clk 0:00:16]}  Ke7 {[%clk 0:00:01]} 56. Qc7 {[%clk 0:00:15]}  f6 {[%clk 0:00:01]} 57. exf6+ {[%clk 0:00:09]}  Ke8 {[%clk 0:00:01]} 58. Qc8+ {[%clk 0:00:09]}  Kf7 {[%clk 0:00:02]} 59. Qxd7+ {[%clk 0:00:09]} 1-0


[Site "https://www.chess.com"]

[Event "Titled Tuesday Blitz July 05 Late 2022"]
[White "Hakobyan, Aram"]
[Black "Bortnyk, Olexandr"]
[WhiteFideId "13306677"]
[BlackFideId "14120828"]
[WhiteElo "2557"]
[BlackElo "2723"]
[Result "1-0"]
[Round "07"]
[TimeControl "180+1"]
[Date "2022.07.05"]
[WhiteClock "0:00:24"]
[BlackClock "0:00:03"]

1. e4 {[%clk 0:03:00]}  d6 {[%clk 0:03:00]} 2. Nc3 {[%clk 0:02:59]}  Nf6 {[%clk 0:03:00]} 3. f4 {[%clk 0:02:56]}  e5 {[%clk 0:02:56]} 4. Nf3 {[%clk 0:02:56]}  Nbd7 {[%clk 0:02:56]} 5. Bc4 {[%clk 0:02:55]}  c6 {[%clk 0:02:48]} 6. fxe5 {[%clk 0:02:39]}  Nxe5 {[%clk 0:02:49]} 7. Bb3 {[%clk 0:02:28]}  Bg4 {[%clk 0:02:24]} 8. d4 {[%clk 0:02:29]}  Nxf3+ {[%clk 0:01:57]} 9. gxf3 {[%clk 0:02:29]}  Bh5 {[%clk 0:01:58]} 10. Be3 {[%clk 0:02:06]}  d5 {[%clk 0:01:57]} 11. e5 {[%clk 0:02:02]}  Ne4 {[%clk 0:01:56]} 12. O-O {[%clk 0:01:58]}  Nxc3 {[%clk 0:01:44]} 13. bxc3 {[%clk 0:01:59]}  b5 {[%clk 0:01:42]} 14. a4 {[%clk 0:01:58]}  a6 {[%clk 0:01:42]} 15. Qd2 {[%clk 0:01:53]}  Be7 {[%clk 0:01:33]} 16. f4 {[%clk 0:01:53]}  f5 {[%clk 0:01:33]} 17. Qg2 {[%clk 0:01:50]}  O-O {[%clk 0:01:30]} 18. Kh1 {[%clk 0:01:50]}  g6 {[%clk 0:01:16]} 19. Bf2 {[%clk 0:01:43]}  Qd7 {[%clk 0:00:45]} 20. Ra2 {[%clk 0:01:43]}  Ra7 {[%clk 0:00:36]} 21. Re1 {[%clk 0:01:41]}  Rb8 {[%clk 0:00:31]} 22. Rea1 {[%clk 0:01:30]}  Rbb7 {[%clk 0:00:26]} 23. Kg1 {[%clk 0:01:27]}  Be2 {[%clk 0:00:24]} 24. Bg3 {[%clk 0:01:21]}  Bc4 {[%clk 0:00:23]} 25. Qf2 {[%clk 0:01:18]}  Rc7 {[%clk 0:00:18]} 26. Bh4 {[%clk 0:01:16]}  Bxh4 {[%clk 0:00:14]} 27. Qxh4 {[%clk 0:01:16]}  Qe7 {[%clk 0:00:14]} 28. Qxe7 {[%clk 0:01:00]}  Rxe7 {[%clk 0:00:15]} 29. axb5 {[%clk 0:01:00]}  Bxb5 {[%clk 0:00:16]} 30. h4 {[%clk 0:01:00]}  Kg7 {[%clk 0:00:15]} 31. Kf2 {[%clk 0:01:00]}  h5 {[%clk 0:00:13]} 32. Ra5 {[%clk 0:00:58]}  Kf7 {[%clk 0:00:09]} 33. Ke3 {[%clk 0:00:59]}  Rab7 {[%clk 0:00:08]} 34. Kd2 {[%clk 0:00:58]}  Rec7 {[%clk 0:00:08]} 35. Ba4 {[%clk 0:00:54]}  Bc4 {[%clk 0:00:03]} 36. Rc5 {[%clk 0:00:51]}  Rb6 {[%clk 0:00:03]} 37. Ra3 {[%clk 0:00:41]}  Rc8 {[%clk 0:00:02]} 38. Bb3 {[%clk 0:00:41]}  Bxb3 {[%clk 0:00:02]} 39. cxb3 {[%clk 0:00:42]}  Rc7 {[%clk 0:00:01]} 40. Kc2 {[%clk 0:00:42]}  Ke6 {[%clk 0:00:02]} 41. Rca5 {[%clk 0:00:41]}  Ra7 {[%clk 0:00:02]} 42. Kd3 {[%clk 0:00:36]}  Ra8 {[%clk 0:00:01]} 43. c4 {[%clk 0:00:37]}  dxc4+ {[%clk 0:00:01]} 44. bxc4 {[%clk 0:00:38]}  Rb1 {[%clk 0:00:02]} 45. d5+ {[%clk 0:00:37]}  cxd5 {[%clk 0:00:02]} 46. cxd5+ {[%clk 0:00:38]}  Kd7 {[%clk 0:00:02]} 47. Rxa6 {[%clk 0:00:37]}  Rxa6 {[%clk 0:00:02]} 48. Rxa6 {[%clk 0:00:38]}  Rb4 {[%clk 0:00:03]} 49. Ra7+ {[%clk 0:00:38]}  Kd8 {[%clk 0:00:03]} 50. d6 {[%clk 0:00:35]}  Re4 {[%clk 0:00:02]} 51. Rg7 {[%clk 0:00:32]}  Ke8 {[%clk 0:00:02]} 52. Rxg6 {[%clk 0:00:32]}  Kd7 {[%clk 0:00:03]} 53. Rg7+ {[%clk 0:00:31]}  Kc6 {[%clk 0:00:03]} 54. Rc7+ {[%clk 0:00:32]}  Kb6 {[%clk 0:00:03]} 55. Rc4 {[%clk 0:00:32]}  Re1 {[%clk 0:00:03]} 56. Kd2 {[%clk 0:00:29]}  Rg1 {[%clk 0:00:02]} 57. d7 {[%clk 0:00:28]}  Rg2+ {[%clk 0:00:03]} 58. Kd3 {[%clk 0:00:23]}  Rg3+ {[%clk 0:00:03]} 59. Kd4 {[%clk 0:00:24]}  Rg1 {[%clk 0:00:03]} 60. d8=Q+ {[%clk 0:00:24]} 1-0


[Site "https://www.chess.com"]

[Event "Titled Tuesday Blitz July 05 Late 2022"]
[White "Halkias, Stelios"]
[Black "Kamsky, Gata"]
[WhiteFideId "4201809"]
[BlackFideId "2000024"]
[WhiteElo "2453"]
[BlackElo "2645"]
[Result "1-0"]
[Round "07"]
[TimeControl "180+1"]
[Date "2022.07.05"]
[WhiteClock "0:00:29"]
[BlackClock "0:00:12"]

1. Nf3 {[%clk 0:03:00]}  Nf6 {[%clk 0:02:59]} 2. c4 {[%clk 0:03:00]}  c6 {[%clk 0:02:52]} 3. d4 {[%clk 0:03:00]}  d5 {[%clk 0:02:52]} 4. Nc3 {[%clk 0:03:00]}  a6 {[%clk 0:02:50]} 5. c5 {[%clk 0:02:59]}  Nbd7 {[%clk 0:02:43]} 6. Bf4 {[%clk 0:02:59]}  Nh5 {[%clk 0:02:42]} 7. g3 {[%clk 0:02:59]}  Nxf4 {[%clk 0:02:39]} 8. gxf4 {[%clk 0:02:59]}  g6 {[%clk 0:02:36]} 9. e3 {[%clk 0:02:57]}  b6 {[%clk 0:02:15]} 10. cxb6 {[%clk 0:02:51]}  Qxb6 {[%clk 0:02:15]} 11. Qd2 {[%clk 0:02:45]}  e6 {[%clk 0:02:14]} 12. Rc1 {[%clk 0:02:44]}  a5 {[%clk 0:01:50]} 13. Bd3 {[%clk 0:02:33]}  c5 {[%clk 0:01:46]} 14. Na4 {[%clk 0:02:21]}  Qb4 {[%clk 0:01:46]} 15. Qxb4 {[%clk 0:02:13]}  axb4 {[%clk 0:01:45]} 16. Nxc5 {[%clk 0:01:39]}  Nxc5 {[%clk 0:01:44]} 17. dxc5 {[%clk 0:01:39]}  Rxa2 {[%clk 0:01:44]} 18. Bb5+ {[%clk 0:01:35]}  Ke7 {[%clk 0:01:37]} 19. Nd4 {[%clk 0:01:29]}  Bb7 {[%clk 0:01:09]} 20. O-O {[%clk 0:01:18]}  Bg7 {[%clk 0:01:08]} 21. c6 {[%clk 0:00:55]}  Ba6 {[%clk 0:00:43]} 22. Rc5 {[%clk 0:00:54]}  Bxd4 {[%clk 0:00:40]} 23. exd4 {[%clk 0:00:53]}  Bxb5 {[%clk 0:00:34]} 24. Rxb5 {[%clk 0:00:53]}  Rxb2 {[%clk 0:00:33]} 25. Rc1 {[%clk 0:00:44]}  Rc8 {[%clk 0:00:30]} 26. Rb7+ {[%clk 0:00:43]}  Ke8 {[%clk 0:00:30]} 27. Ra1 {[%clk 0:00:31]}  Rc2 {[%clk 0:00:17]} 28. Raa7 {[%clk 0:00:31]}  R2xc6 {[%clk 0:00:15]} 29. Re7+ {[%clk 0:00:31]}  Kd8 {[%clk 0:00:12]} 30. Rad7# {[%clk 0:00:29]} 1-0


[Site "https://www.chess.com"]

[Event "Titled Tuesday Blitz July 05 Late 2022"]
[White "Holt, Conrad"]
[Black "Diaz Perez, Michel Alejandro"]
[WhiteFideId "2034387"]
[BlackFideId "3517179"]
[WhiteElo "2586"]
[BlackElo "2313"]
[Result "1-0"]
[Round "07"]
[TimeControl "180+1"]
[Date "2022.07.05"]
[WhiteClock "0:00:13"]
[BlackClock "0:00:06"]

1. d4 {[%clk 0:03:00]}  Nf6 {[%clk 0:02:58]} 2. c4 {[%clk 0:03:01]}  e6 {[%clk 0:02:59]} 3. Nc3 {[%clk 0:03:01]}  d5 {[%clk 0:03:00]} 4. cxd5 {[%clk 0:03:01]}  exd5 {[%clk 0:03:00]} 5. Bg5 {[%clk 0:03:01]}  Nbd7 {[%clk 0:03:00]} 6. e3 {[%clk 0:03:00]}  c6 {[%clk 0:03:00]} 7. Bd3 {[%clk 0:03:00]}  Be7 {[%clk 0:03:01]} 8. Qc2 {[%clk 0:02:59]}  Nh5 {[%clk 0:03:00]} 9. Bxe7 {[%clk 0:02:57]}  Qxe7 {[%clk 0:03:01]} 10. Nge2 {[%clk 0:02:56]}  g6 {[%clk 0:02:56]} 11. O-O {[%clk 0:02:55]}  O-O {[%clk 0:02:55]} 12. Nc1 {[%clk 0:02:51]}  Ng7 {[%clk 0:02:52]} 13. Re1 {[%clk 0:02:48]}  Nf6 {[%clk 0:02:52]} 14. f3 {[%clk 0:02:47]}  Qd6 {[%clk 0:02:40]} 15. Nb3 {[%clk 0:02:46]}  Be6 {[%clk 0:02:34]} 16. Qf2 {[%clk 0:02:42]}  Rad8 {[%clk 0:02:30]} 17. Qg3 {[%clk 0:02:40]}  Qxg3 {[%clk 0:02:26]} 18. hxg3 {[%clk 0:02:40]}  Rfe8 {[%clk 0:02:26]} 19. g4 {[%clk 0:02:39]}  h5 {[%clk 0:02:19]} 20. gxh5 {[%clk 0:02:37]}  Ngxh5 {[%clk 0:02:12]} 21. g4 {[%clk 0:02:36]}  Ng7 {[%clk 0:02:11]} 22. Kf2 {[%clk 0:02:35]}  Bc8 {[%clk 0:02:07]} 23. a4 {[%clk 0:02:34]}  Re7 {[%clk 0:02:01]} 24. a5 {[%clk 0:02:34]}  Rde8 {[%clk 0:02:00]} 25. Rac1 {[%clk 0:02:31]}  Bxg4 {[%clk 0:01:50]} 26. fxg4 {[%clk 0:02:30]}  Nxg4+ {[%clk 0:01:51]} 27. Kg1 {[%clk 0:02:29]}  Rxe3 {[%clk 0:01:49]} 28. Rxe3 {[%clk 0:02:29]}  Rxe3 {[%clk 0:01:50]} 29. Be2 {[%clk 0:02:28]}  Nf6 {[%clk 0:01:49]} 30. Kf2 {[%clk 0:02:27]}  Rh3 {[%clk 0:01:48]} 31. a6 {[%clk 0:02:10]}  bxa6 {[%clk 0:01:43]} 32. Na5 {[%clk 0:02:06]}  Nf5 {[%clk 0:01:36]} 33. Nxc6 {[%clk 0:02:06]}  Kg7 {[%clk 0:01:32]} 34. Kg2 {[%clk 0:01:51]}  Rh4 {[%clk 0:01:14]} 35. Rh1 {[%clk 0:01:48]}  Rf4 {[%clk 0:00:59]} 36. Bxa6 {[%clk 0:01:45]}  Nxd4 {[%clk 0:00:58]} 37. Nxa7 {[%clk 0:01:44]}  Nf5 {[%clk 0:00:55]} 38. Nc6 {[%clk 0:01:41]}  d4 {[%clk 0:00:54]} 39. Ne2 {[%clk 0:01:39]}  Re4 {[%clk 0:00:50]} 40. Bd3 {[%clk 0:01:37]}  Ne3+ {[%clk 0:00:49]} 41. Kf3 {[%clk 0:01:36]}  Re6 {[%clk 0:00:43]} 42. Nexd4 {[%clk 0:01:34]}  Re8 {[%clk 0:00:44]} 43. Re1 {[%clk 0:01:33]}  Ned5 {[%clk 0:00:41]} 44. Rxe8 {[%clk 0:01:33]}  Nxe8 {[%clk 0:00:42]} 45. Ke4 {[%clk 0:01:22]}  Nb6 {[%clk 0:00:41]} 46. Ke5 {[%clk 0:01:21]}  Na4 {[%clk 0:00:31]} 47. b4 {[%clk 0:01:21]}  Nb6 {[%clk 0:00:24]} 48. b5 {[%clk 0:01:20]}  Nc7 {[%clk 0:00:24]} 49. Kd6 {[%clk 0:01:19]}  Nxb5+ {[%clk 0:00:24]} 50. Bxb5 {[%clk 0:01:17]}  f5 {[%clk 0:00:22]} 51. Na7 {[%clk 0:01:10]}  Kf6 {[%clk 0:00:20]} 52. Kc5 {[%clk 0:01:09]}  Na8 {[%clk 0:00:18]} 53. Kc6 {[%clk 0:01:07]}  f4 {[%clk 0:00:18]} 54. Kb7 {[%clk 0:01:04]}  g5 {[%clk 0:00:19]} 55. Be2 {[%clk 0:01:02]}  Ke5 {[%clk 0:00:15]} 56. Nf3+ {[%clk 0:01:02]}  Kf5 {[%clk 0:00:15]} 57. Nh2 {[%clk 0:01:02]}  Ke4 {[%clk 0:00:11]} 58. Kxa8 {[%clk 0:01:02]}  Ke3 {[%clk 0:00:11]} 59. Bh5 {[%clk 0:01:02]}  Kf2 {[%clk 0:00:12]} 60. Nc6 {[%clk 0:00:58]}  Kg3 {[%clk 0:00:12]} 61. Ng4 {[%clk 0:00:53]}  f3 {[%clk 0:00:05]} 62. Ne3 {[%clk 0:00:48]}  Kf4 {[%clk 0:00:04]} 63. Nd5+ {[%clk 0:00:44]}  Ke4 {[%clk 0:00:04]} 64. Nc3+ {[%clk 0:00:40]}  Kd3 {[%clk 0:00:04]} 65. Bxf3 {[%clk 0:00:38]}  Kxc3 {[%clk 0:00:04]} 66. Ne5 {[%clk 0:00:38]}  Kd4 {[%clk 0:00:03]} 67. Ng4 {[%clk 0:00:38]}  Kd3 {[%clk 0:00:03]} 68. Kb7 {[%clk 0:00:38]}  Kd2 {[%clk 0:00:04]} 69. Kc6 {[%clk 0:00:38]}  Ke1 {[%clk 0:00:04]} 70. Kd5 {[%clk 0:00:38]}  Kf1 {[%clk 0:00:05]} 71. Ke4 {[%clk 0:00:36]}  Ke1 {[%clk 0:00:06]} 72. Ke3 {[%clk 0:00:33]}  Kf1 {[%clk 0:00:06]} 73. Nh2+ {[%clk 0:00:22]}  Kg1 {[%clk 0:00:06]} 74. Ng4 {[%clk 0:00:22]}  Kf1 {[%clk 0:00:06]} 75. Kd2 {[%clk 0:00:18]}  Kg1 {[%clk 0:00:06]} 76. Kd3 {[%clk 0:00:15]}  Kf1 {[%clk 0:00:06]} 77. Bd1 {[%clk 0:00:15]}  Ke1 {[%clk 0:00:06]} 78. Ba4 {[%clk 0:00:15]}  Kf1 {[%clk 0:00:06]} 79. Bd7 {[%clk 0:00:15]}  Kg2 {[%clk 0:00:06]} 80. Ke4 {[%clk 0:00:16]}  Kg3 {[%clk 0:00:07]} 81. Kf5 {[%clk 0:00:16]}  Kg2 {[%clk 0:00:07]} 82. Kxg5 {[%clk 0:00:16]}  Kg3 {[%clk 0:00:07]} 83. Kf5 {[%clk 0:00:16]}  Kg2 {[%clk 0:00:06]} 84. Kf4 {[%clk 0:00:17]}  Kf1 {[%clk 0:00:06]} 85. Ke3 {[%clk 0:00:17]}  Ke1 {[%clk 0:00:06]} 86. Nf2 {[%clk 0:00:17]}  Kf1 {[%clk 0:00:06]} 87. Bg4 {[%clk 0:00:15]}  Ke1 {[%clk 0:00:06]} 88. Bf3 {[%clk 0:00:15]}  Kf1 {[%clk 0:00:04]} 89. Nd3 {[%clk 0:00:10]}  Kg1 {[%clk 0:00:04]} 90. Kf4 {[%clk 0:00:11]}  Kf1 {[%clk 0:00:04]} 91. Kg3 {[%clk 0:00:10]}  Kg1 {[%clk 0:00:05]} 92. Be2 {[%clk 0:00:11]}  Kh1 {[%clk 0:00:05]} 93. Nf2+ {[%clk 0:00:11]}  Kg1 {[%clk 0:00:05]} 94. Nh3+ {[%clk 0:00:12]}  Kh1 {[%clk 0:00:06]} 95. Bf3# {[%clk 0:00:13]} 1-0


[Site "https://www.chess.com"]